bitfinex/quotes_ETHUSD_20260209
["timestamp","ask_amount","ask_price","bid_price","bid_amount"]
[1770666519305,0.05631688,2130.3,2129.7,1.17494611]
[1770666519525,0.05631688,2130.3,2129.7,0.0011]
[1770666519897,1.22978668,2130.5,2129.7,0.0011]
[1770666520096,1.00613301,2130.4,2129.7,0.0011]
[1770666520301,1.22978668,2130.5,2129.7,0.0011]
[1770666520500,0.05631688,2130.1,2129.7,0.0011]
[1770666521030,0.05631688,2130.7,2129.7,0.0011]
[1770666521327,1.00553979,2130.6,2129.7,0.0011]
[1770666521522,0.05631688,2130.7,2129.7,1.17497425]
[1770666521523,1.00553979,2130.5,2129.7,1.17497425]
[1770666521727,1.22966661,2130.7,2129.7,1.17497425]
[1770666521926,0.05631688,2130.2,2129.7,0.0011]
[1770666522096,0.05631688,2130.5,2129.7,0.0011]
[1770666522293,1.17332881,2130.7,2129.7,0.91365801]
[1770666522526,4.45111419,2131.1,2129.7,0.91365801]
[1770666522723,1.06087221,2131.0,2129.7,0.91365801]
[1770666522930,1.00455533,2130.9,2129.7,0.91365801]
[1770666523230,4.50743107,2131.1,2129.7,0.91365801]
[1770666523402,2.17763898,2131.0,2129.9,0.91255801]
[1770666523724,3.278,2131.1,2130.0,11.38215525]
[1770666523930,3.278,2131.1,2130.1,0.91255801]
[1770666524929,3.33431688,2131.1,2130.1,0.91255801]
[1770666525606,3.33431688,2131.1,2130.2,1.17359872]
[1770666525828,0.05631688,2130.9,2130.2,1.17359872]
[1770666526033,0.05631688,2130.9,2130.1,1.17361611]
[1770666526937,0.05631688,2130.7,2130.1,1.17361611]
[1770666528032,1.2296218,2130.8,2130.0,1.17370892]
[1770666528412,0.05631688,2130.4,2129.9,3.2801]
[1770666528644,0.05631688,2130.2,2129.9,0.0011]
[1770666530939,0.05631688,2130.2,2128.8,0.0011]
[1770666530940,0.05631688,2130.0,2128.8,0.0011]
[1770666531128,0.05631688,2129.4,2128.8,1.17546047]
[1770666531329,0.05631688,2129.4,2128.8,0.0011]
[1770666531509,0.05631688,2129.8,2128.8,0.0011]
[1770666531706,0.05631688,2129.9,2129.3,1.17407232]
[1770666531941,0.05631688,2129.8,2129.2,1.17410645]
[1770666532107,1.23016361,2129.8,2128.8,0.0011]
[1770666532909,0.05631688,2129.6,2128.8,0.0011]
[1770666534445,1.23025419,2129.6,2128.8,0.0011]
[1770666534647,0.05631688,2129.4,2128.8,0.0011]
[1770666535015,1.23025419,2129.6,2128.8,0.0011]
[1770666535244,0.05631688,2129.4,2128.8,0.0011]
[1770666535667,0.05631688,2129.6,2128.8,0.0011]
[1770666535943,4.74996324,2130.6,2129.1,0.98666514]
[1770666535944,0.05631688,2130.2,2129.1,0.98666514]
[1770666536442,0.0012,2130.0,2129.3,0.98666514]
[1770666536642,1.17310309,2131.1,2129.5,0.98666514]
[1770666536829,1.17310309,2131.1,2129.6,0.98666514]
[1770666536830,0.05631688,2130.7,2129.6,0.98666514]
[1770666537910,0.05631688,2130.1,2129.2,2.16081505]
[1770666538215,0.05631688,2129.9,2129.2,2.16081505]
[1770666538430,0.05631688,2129.9,2129.1,4.69659966]
[1770666538926,1.01678098,2131.0,2129.4,0.98666514]
[1770666539236,0.05631688,2130.6,2129.6,0.98666514]
[1770666539858,0.05631688,2130.2,2129.2,0.98666514]
[1770666540222,0.05631688,2130.4,2129.2,0.98666514]
[1770666540428,1.17335256,2130.7,2129.4,0.98666514]
[1770666540634,0.05631688,2130.6,2129.4,0.98666514]
[1770666541433,1.22925485,2131.4,2130.2,0.98666514]
[1770666541628,0.05631688,2131.0,2129.9,3.281]
[1770666541888,0.05631688,2130.8,2129.9,3.281]
[1770666542752,0.05631688,2130.4,2129.9,4.45475504]
[1770666543067,0.05631688,2130.2,2129.7,1.17383431]
[1770666543231,0.05631688,2130.2,2129.6,4.69550808]
[1770666543435,0.05631688,2130.2,2129.8,1.17381244]
[1770666543630,0.05631688,2130.2,2129.4,4.69614235]
[1770666543631,0.05631688,2129.9,2129.4,1.17401696]
[1770666543858,0.05631688,2130.2,2129.0,5.68477782]
[1770666544058,0.05631688,2130.6,2129.9,1.17375555]
[1770666544261,1.00584191,2130.5,2129.9,1.17375555]
[1770666544470,1.06215879,2130.4,2129.9,1.17376285]
[1770666544654,1.22974727,2130.6,2129.4,4.69572154]
[1770666544837,1.00605575,2130.5,2129.5,0.98666514]
[1770666545162,1.06237263,2130.4,2129.3,2.16075991]
[1770666545459,1.00605575,2130.3,2129.3,2.16075991]
[1770666546158,0.05631688,2130.0,2129.3,1.17409477]
[1770666546670,0.05631688,2129.8,2129.0,1.17533789]
[1770666546852,0.05631688,2129.6,2129.1,1.17420042]
[1770666547039,0.05631688,2130.0,2129.2,1.17414227]
[1770666547232,0.05631688,2129.8,2129.0,0.0011]
[1770666547454,1.00729475,2129.7,2129.2,1.17413415]
[1770666547654,1.22984217,2130.4,2129.2,1.17413415]
[1770666547855,1.22980582,2130.4,2129.2,2.16079929]
[1770666548255,0.05631688,2130.5,2129.3,0.98666514]
[1770666548770,0.0012,2130.4,2129.6,0.98666514]
[1770666549074,1.17319102,2131.0,2129.8,0.98666514]
[1770666549367,0.05631688,2130.9,2129.8,4.26766514]
[1770666550055,0.05631688,2131.2,2130.0,0.98666514]
[1770666550664,0.05631688,2131.0,2130.1,1.17365381]
[1770666551067,0.05631688,2130.8,2130.1,1.17365381]
[1770666551678,0.05631688,2131.0,2130.2,0.98666514]
[1770666551842,0.05631688,2131.2,2130.2,0.98666514]
[1770666552264,0.05631688,2131.0,2130.1,1.17365381]
[1770666552482,0.05631688,2130.6,2130.1,1.17365381]
[1770666552690,0.05631688,2130.8,2129.8,3.281]
[1770666552962,0.05631688,2131.2,2130.0,0.98666514]
[1770666554550,3.33731688,2131.3,2130.2,0.98666514]
[1770666554772,3.281,2131.3,2130.3,2.16020877]
[1770666554959,0.05631688,2131.2,2130.3,2.16020877]
[1770666555153,0.05631688,2131.0,2130.3,1.17354363]
[1770666555359,0.05631688,2130.8,2130.3,1.17354363]
[1770666555878,0.05631688,2131.2,2130.3,1.17354363]
[1770666556257,0.05631688,2131.0,2130.2,1.17355783]
[1770666556476,0.05631688,2130.8,2130.2,1.17355783]
[1770666556857,0.05631688,2130.8,2130.0,4.69481609]
[1770666558194,1.2295959,2130.8,2130.0,4.69481609]
[1770666558848,0.05631688,2130.6,2130.0,4.69481609]
[1770666559050,0.05631688,2130.6,2129.9,1.17370892]
[1770666559654,0.05631688,2130.4,2129.8,4.45478529]
[1770666559875,0.05631688,2130.4,2129.8,1.17378529]
[1770666560866,0.05751688,2130.4,2129.8,1.17378529]
[1770666561068,0.05751688,2130.4,2129.5,0.0011]
[1770666561670,1.23101687,2130.4,2129.5,0.0011]
[1770666561872,1.00875825,2130.3,2129.5,0.0011]
[1770666562184,1.23101687,2130.4,2129.5,0.0011]
[1770666562385,1.00907891,2130.3,2129.5,0.0011]
[1770666562575,1.23101687,2130.4,2129.5,0.0011]
[1770666562771,1.00908598,2130.3,2129.5,0.0011]
[1770666562974,0.0012,2130.4,2129.6,0.9092554]
[1770666563154,4.69297772,2130.9,2129.7,2.08312965]
[1770666563357,1.00944167,2130.8,2129.7,2.08312965]
[1770666563565,1.00944167,2130.7,2129.7,2.08312965]
[1770666563763,1.00944167,2130.6,2129.7,2.08312965]
[1770666563975,1.00944167,2130.5,2129.7,2.08312965]
[1770666564170,1.2295097,2131.0,2129.8,0.9092554]
[1770666564373,3.40858973,2131.4,2130.0,0.9092554]
[1770666564577,1.22929762,2131.4,2130.2,0.9092554]
[1770666564779,2.22055439,2131.4,2130.0,0.9092554]
[1770666564979,0.05631688,2131.2,2130.0,0.9092554]
[1770666565260,1.04757365,2131.4,2130.1,1.17365381]
[1770666565466,0.05631688,2131.2,2130.2,0.9092554]
[1770666566687,1.22929996,2131.4,2130.2,0.9092554]
[1770666567273,1.22929996,2131.4,2130.3,1.17354363]
[1770666567467,1.22929996,2131.4,2130.3,2.08279903]
[1770666567468,0.05631688,2131.4,2130.3,2.08279903]
[1770666567809,1.22926211,2131.4,2130.3,2.08279903]
[1770666568780,0.05631688,2131.2,2130.3,2.08279903]
[1770666569056,0.05631688,2131.3,2130.3,2.08279903]
[1770666569260,1.17304804,2131.2,2130.3,2.08279903]
[1770666569669,0.05631688,2131.1,2130.3,1.17354363]
[1770666569858,0.05631688,2130.9,2130.3,1.17354363]
[1770666570071,0.05631688,2130.7,2130.3,1.17353782]
[1770666570461,0.05631688,2130.7,2130.3,1.17353805]
[1770666570889,0.05631688,2130.9,2130.2,1.17356555]
[1770666571095,0.05631688,2130.9,2130.3,1.17353686]
[1770666571470,0.05631688,2131.1,2130.1,4.69417452]
[1770666571792,1.22931639,2131.3,2130.2,0.9092554]
[1770666572697,8.09990265,2131.6,2130.4,0.9092554]
[1770666572698,1.2291765,2131.6,2130.4,0.9092554]
[1770666572864,0.05631688,2131.6,2130.5,1.1428257]
[1770666573364,0.0012,2131.7,2130.6,0.9092554]
[1770666573585,0.0012,2131.7,2130.7,2.08257872]
[1770666573901,0.0012,2131.7,2130.8,0.9092554]
[1770666574466,0.0012,2132.3,2131.2,0.9092554]
[1770666574798,0.0012,2132.3,2131.4,0.9092554]
[1770666575108,0.0012,2132.5,2131.7,1.1428257]
[1770666575391,0.0012,2132.6,2131.7,0.9092554]
[1770666575610,1.17185188,2133.4,2132.1,0.9092554]
[1770666575937,0.05631688,2132.6,2132.0,1.17260787]
[1770666576097,1.04757365,2133.1,2132.0,1.17260787]
[1770666576309,1.00673805,2133.0,2132.0,1.17260787]
[1770666576612,1.06305493,2132.9,2132.0,1.17260787]
[1770666576805,0.05631688,2132.6,2131.9,1.17262558]
[1770666578025,1.04757365,2133.1,2131.9,1.17262558]
[1770666578026,1.22833117,2133.1,2131.9,1.17262558]
[1770666578184,0.05631688,2132.9,2131.9,1.17262558]
[1770666578597,1.22825156,2133.3,2132.0,0.9092554]
[1770666578792,1.00425833,2133.2,2132.0,0.9092554]
[1770666579020,1.22825156,2133.3,2132.1,1.1428257]
[1770666579316,1.00417929,2133.2,2132.1,1.1428257]
[1770666579529,0.05631688,2133.5,2132.4,0.9092554]
[1770666579696,1.22811902,2133.5,2132.5,1.17233294]
[1770666579902,0.05631688,2133.1,2132.5,1.17233294]
[1770666580100,0.05631688,2133.3,2132.5,1.17233294]
[1770666580513,0.05631688,2133.1,2132.5,1.17233294]
[1770666581810,0.05631688,2132.9,2132.1,1.17255288]
[1770666582008,0.05631688,2132.7,2132.1,1.17255288]
[1770666582195,0.05631688,2132.7,2132.0,4.69036677]
[1770666582196,0.05631688,2132.7,2132.0,1.17256514]
[1770666582399,1.2283384,2133.1,2132.0,1.17256514]
[1770666582700,1.22832103,2133.1,2132.0,2.08182054]
[1770666583428,0.05631688,2133.0,2132.0,2.08182054]
[1770666583822,0.05631688,2132.8,2132.0,1.17256514]
[1770666584329,0.05631688,2132.6,2132.0,1.17256514]
[1770666584912,0.05631688,2132.8,2132.0,1.17256514]
[1770666585108,0.05631688,2133.0,2132.0,1.17256514]
[1770666585309,1.22824733,2133.3,2132.1,0.9092554]
[1770666585509,0.15871688,2134.0,2132.4,0.9092554]
[1770666585510,4.45176773,2133.6,2132.4,0.9092554]
[1770666585717,0.05631688,2133.5,2132.4,2.08164331]
[1770666586025,1.22810257,2133.5,2132.4,2.08164331]
[1770666586211,0.05631688,2133.8,2132.6,0.9092554]
[1770666587024,0.05631688,2134.0,2132.8,0.9092554]
[1770666587199,0.0012,2134.1,2132.8,0.9092554]
[1770666587399,0.0012,2134.1,2133.1,0.9092554]
[1770666587627,1.22752073,2134.6,2133.4,12.27506459]
[1770666587827,0.05631688,2134.6,2133.5,1.17178345]
[1770666588031,1.22750837,2134.6,2133.5,1.17178345]
[1770666588730,0.05631688,2134.4,2133.5,1.17178345]
[1770666588938,1.22738754,2134.8,2133.6,0.2335703]
[1770666589106,1.22738754,2134.8,2133.7,0.9092554]
[1770666589107,1.22740444,2134.8,2133.7,0.9092554]
[1770666589646,0.05631688,2134.6,2133.7,0.9092554]
[1770666589800,0.05631688,2134.4,2133.8,1.1716187]
[1770666590131,0.05631688,2134.8,2133.8,1.1716187]
[1770666590132,1.22738884,2134.8,2133.8,1.1716187]
[1770666590524,0.05631688,2134.6,2133.8,1.1716187]
[1770666592324,1.17122353,2134.6,2133.6,4.68647483]
[1770666592505,1.22754041,2134.6,2133.6,4.68647483]
[1770666592924,0.05631688,2134.6,2133.6,4.68647483]
[1770666593413,1.04757365,2135.0,2133.7,0.91211318]
[1770666593613,1.1709658,2135.0,2133.9,0.91211318]
[1770666593808,0.05631688,2135.0,2133.9,0.91211318]
[1770666594110,0.05631688,2135.6,2134.4,1.14568348]
[1770666594316,1.22696083,2135.6,2134.6,1.17117961]
[1770666594514,0.05631688,2135.6,2134.6,1.17117961]
[1770666595008,1.17050704,2135.9,2134.7,11.59165071]
[1770666595219,0.05631688,2135.8,2134.8,0.91211318]
[1770666596718,1.22688923,2135.8,2134.9,1.17101503]
[1770666597239,1.22688923,2135.8,2134.5,3.276]
[1770666597240,0.05631688,2135.0,2134.2,0.91211318]
[1770666597541,0.05631688,2135.2,2134.2,0.91211318]
[1770666597856,0.05631688,2135.6,2134.8,1.171066]
[1770666598010,0.05631688,2135.4,2134.8,1.171066]
[1770666598217,0.05631688,2135.6,2134.8,1.171066]
[1770666598824,0.05631688,2135.4,2134.7,4.68437477]
[1770666599424,0.05631688,2135.6,2134.7,4.68437477]
[1770666599635,0.05631688,2135.4,2134.7,4.68437477]
[1770666600717,0.05631688,2134.9,2134.0,4.68599811]
[1770666600950,1.22716558,2135.3,2134.1,4.18611318]
[1770666601149,0.05631688,2135.2,2134.3,0.2335703]
[1770666601322,0.05631688,2135.2,2134.2,0.91211318]
[1770666601529,0.05631688,2135.0,2134.1,3.274]
[1770666602453,0.05631688,2134.9,2134.1,3.274]
[1770666603048,0.05631688,2136.0,2134.3,0.91211318]
[1770666603226,0.05631688,2135.8,2134.6,0.91211318]
[1770666603430,0.05631688,2135.9,2134.7,4.41968348]
[1770666603633,0.05631688,2135.9,2134.8,0.91211318]
[1770666604164,1.22678366,2136.0,2134.8,0.91211318]
[1770666604481,1.17038866,2136.1,2135.0,0.91211318]
[1770666604641,3.275,2136.2,2135.0,0.91211318]
[1770666604838,3.33131688,2136.2,2135.0,0.91211318]
[1770666605041,0.05631688,2136.6,2135.0,0.91211318]
[1770666605042,2.13946067,2136.8,2135.5,1.17068602]
[1770666605272,0.05631688,2136.6,2135.5,4.44468602]
[1770666605439,1.22632196,2136.8,2135.5,5.3567992]
[1770666605637,0.05631688,2136.6,2135.5,5.3567992]
[1770666605836,0.05631688,2136.4,2135.5,4.44468602]
[1770666606065,0.05631688,2136.6,2135.5,4.44468602]
[1770666606240,0.05631688,2136.2,2135.5,1.17068602]
[1770666606442,0.05631688,2135.9,2135.2,1.17082281]
[1770666606764,0.05631688,2136.5,2135.4,1.17072979]
[1770666606952,0.05631688,2136.4,2135.4,1.17072979]
[1770666607152,1.17028466,2136.3,2135.4,3.274]
[1770666607354,0.05631688,2136.4,2135.4,3.274]
[1770666607558,1.22652432,2136.4,2135.4,3.274]
[1770666607739,0.05631688,2136.2,2135.2,5.59507655]
[1770666607934,1.22652432,2136.4,2135.3,3.273]
[1770666608334,0.05631688,2136.2,2135.3,3.273]
[1770666608958,0.05631688,2136.2,2135.2,4.68296337]
[1770666609178,1.17035719,2136.1,2135.2,4.68296337]
[1770666609372,0.05631688,2136.2,2135.2,4.68296337]
[1770666609584,1.17024762,2136.3,2135.3,0.91211318]
[1770666610466,0.05631688,2136.2,2135.2,7.95706337]
[1770666610885,0.05631688,2135.8,2135.2,4.4449505]
[1770666611060,0.05631688,2135.7,2135.2,0.0011]
[1770666611259,0.05631688,2135.5,2135.2,0.0011]
[1770666611456,0.05631688,2135.8,2135.2,0.0011]
[1770666611667,0.05631688,2135.7,2135.2,0.0011]
[1770666612080,0.05631688,2135.4,2135.2,0.0011]
[1770666612262,0.05631688,2135.7,2135.2,0.0011]
[1770666613384,0.05631688,2135.9,2135.2,0.0011]
[1770666613684,0.05631688,2135.7,2135.2,0.0011]
[1770666614051,1.22678655,2135.9,2135.2,0.0011]
[1770666614052,0.05631688,2135.8,2135.2,0.0011]
[1770666615158,1.22688788,2135.8,2135.2,0.0011]
[1770666616088,0.05631688,2135.6,2135.2,0.0011]
[1770666616584,1.18315974,2135.8,2135.2,0.0011]
[1770666616888,0.05631688,2135.6,2135.2,0.0011]
[1770666617084,0.01263376,2135.8,2135.2,0.0011]
[1770666617270,1.00389583,2135.7,2135.2,0.0011]
[1770666617471,1.18315584,2135.8,2135.2,0.0011]
[1770666617658,0.01263376,2135.8,2135.2,0.0011]
[1770666617859,1.22658971,2136.3,2135.2,0.0011]
[1770666618070,1.00375445,2136.2,2135.2,0.91321318]
[1770666618270,1.22657513,2136.3,2135.2,0.91321318]
[1770666618565,1.00408529,2136.2,2135.2,0.91321318]
[1770666618766,1.22657513,2136.3,2135.2,0.91321318]
[1770666619090,1.0040836,2136.2,2135.2,0.91321318]
[1770666619390,0.05631688,2136.1,2135.3,1.17079567]
[1770666619969,0.05631688,2135.9,2135.3,1.17079567]
[1770666620796,0.05631688,2135.9,2135.2,4.68428269]
[1770666620797,0.05631688,2135.5,2135.2,0.0011]
[1770666620967,0.05631688,2135.5,2135.0,0.0011]
[1770666621294,1.1706312,2135.6,2135.0,0.0011]
[1770666621581,4.73865887,2135.7,2135.0,0.0011]
[1770666621582,0.05631688,2135.5,2135.0,0.0011]
[1770666621882,1.17058637,2135.7,2135.0,0.0011]
[1770666621883,1.22690325,2135.7,2135.0,0.0011]
[1770666622090,0.05631688,2135.5,2135.0,0.0011]
[1770666622263,0.05631688,2135.5,2135.2,0.0011]
[1770666623295,1.17041198,2136.0,2135.2,0.0011]
[1770666623593,0.05631688,2135.9,2135.2,0.0011]
[1770666625168,0.05631688,2135.7,2135.2,0.0011]
[1770666625358,1.2268291,2135.9,2135.2,0.0011]
[1770666625693,1.22668088,2136.1,2135.2,0.0011]
[1770666625903,0.05631688,2135.9,2135.2,0.0011]
[1770666626768,1.22668088,2136.1,2135.2,0.0011]
[1770666626991,0.05631688,2135.9,2135.2,0.0011]
[1770666627207,0.98452426,2136.7,2135.2,0.99882371]
[1770666627494,4.44332513,2136.6,2135.4,0.99772371]
[1770666627662,0.05631688,2136.3,2135.4,0.99772371]
[1770666627864,0.05631688,2135.9,2135.2,1.17190728]
[1770666628095,0.05631688,2135.7,2135.2,1.17194657]
[1770666628392,0.05631688,2135.9,2135.2,1.17194657]
[1770666629267,1.22690411,2135.7,2135.2,0.0011]
[1770666629467,0.05631688,2135.3,2135.0,0.0011]
[1770666629667,0.05631688,2135.3,2134.3,1.17134423]
[1770666629668,0.05631688,2134.9,2134.3,1.17134423]
[1770666629907,0.05631688,2134.8,2134.3,1.17134423]
[1770666630367,0.05631688,2134.6,2134.1,0.0011]
[1770666630566,0.05631688,2134.8,2134.2,1.17139054]
[1770666631094,0.05631688,2134.9,2134.2,1.17139054]
[1770666631295,0.05631688,2134.9,2134.1,4.68677948]
[1770666631296,0.05631688,2134.7,2134.1,0.0011]
[1770666631498,0.05631688,2134.9,2134.1,0.0011]
[1770666631800,0.05631688,2134.7,2134.1,0.0011]
[1770666633065,0.05631688,2134.9,2134.1,0.0011]
[1770666633271,1.22724172,2135.1,2134.1,0.0011]
[1770666633588,0.05631688,2135.4,2134.1,0.99882371]
[1770666633970,0.05631688,2135.5,2134.4,0.0011]
[1770666634372,0.05631688,2135.3,2134.4,0.0011]
[1770666634590,0.05631688,2135.5,2134.4,0.0011]
[1770666634795,0.05631688,2135.3,2134.4,0.0011]
[1770666634987,0.05631688,2135.5,2134.4,0.0011]
[1770666635399,0.05631688,2135.3,2134.4,0.0011]
[1770666635588,1.00647464,2135.2,2134.4,0.0011]
[1770666635980,0.05631688,2134.7,2134.4,0.0011]
[1770666636389,0.05631688,2134.9,2134.4,0.0011]
[1770666637108,0.05631688,2135.3,2134.4,0.99882371]
[1770666637309,1.00660874,2135.2,2134.4,0.99882371]
[1770666637605,0.05631688,2135.3,2134.5,1.17123448]
[1770666637808,1.00660631,2135.2,2134.5,1.17123448]
[1770666637994,1.06292527,2135.1,2134.4,1.17236295]
[1770666638302,0.05631688,2134.9,2134.4,1.17236295]
[1770666639726,0.05631688,2134.9,2134.4,0.0011]
[1770666640232,0.05631688,2135.1,2134.4,0.0011]
[1770666640424,1.00695942,2135.0,2134.4,0.0011]
[1770666640589,1.22689507,2135.7,2134.5,0.99772371]
[1770666640788,1.06308609,2135.6,2134.6,0.99772371]
[1770666641014,1.00676921,2135.5,2134.6,0.99772371]
[1770666641208,0.05631688,2135.7,2134.6,0.99772371]
[1770666641414,1.00668388,2135.6,2134.6,0.99772371]
[1770666641610,4.5010246,2135.9,2134.6,0.99772371]
[1770666641920,1.00660893,2135.8,2134.7,2.16884845]
[1770666642118,1.00660893,2135.7,2134.8,0.99772371]
[1770666642321,3.33051688,2135.9,2134.8,0.99772371]
[1770666642511,1.00658082,2135.8,2134.8,0.99772371]
[1770666642716,1.00658082,2135.7,2134.8,0.99772371]
[1770666642911,3.33051688,2135.9,2134.8,0.99772371]
[1770666643124,1.00658225,2135.8,2134.8,0.99772371]
[1770666643321,3.33051688,2135.9,2134.8,0.99772371]
[1770666643322,1.00658225,2135.7,2134.8,0.99772371]
[1770666643526,3.33051688,2135.9,2134.8,0.99772371]
[1770666643717,3.33051688,2135.9,2134.9,1.17101503]
[1770666643718,1.0066129,2135.8,2134.9,1.17101503]
[1770666643920,1.06292978,2135.7,2134.9,1.17101503]
[1770666644216,0.05631688,2135.7,2134.9,1.17101503]
[1770666645010,1.22800058,2135.9,2134.9,1.17101503]
[1770666645325,0.05631688,2135.7,2134.9,1.17101503]
[1770666645717,0.05631688,2135.5,2134.9,1.17101503]
[1770666646313,0.05751688,2135.7,2134.9,1.17101503]
[1770666647630,0.0012,2135.7,2135.0,0.99772371]
[1770666647931,0.0012,2135.9,2135.3,1.17079567]
[1770666648228,0.0012,2135.9,2135.3,2.16851938]
[1770666648999,0.0012,2135.9,2135.3,1.17079567]
[1770666649202,0.05631688,2135.6,2135.2,1.17081773]
[1770666649632,0.05631688,2135.8,2135.2,1.17081773]
[1770666649799,0.05631688,2135.6,2134.7,0.99772371]
[1770666650005,1.1705811,2135.7,2135.0,4.68373274]
[1770666650204,0.05631688,2135.6,2135.0,4.68373274]
[1770666650626,0.05631688,2135.8,2135.0,4.68373274]
[1770666651436,0.05751688,2135.9,2135.0,4.68373274]
[1770666651630,1.00662029,2135.8,2135.0,4.68373274]
[1770666651834,0.05751688,2135.9,2135.0,5.6731684]
[1770666653739,0.0012,2135.9,2135.0,5.6731684]
[1770666654241,0.0012,2135.9,2135.1,0.98943566]
[1770666654625,0.0012,2135.9,2135.2,2.16028616]
[1770666654864,0.0012,2135.9,2135.3,0.98943566]
[1770666655038,0.0012,2136.6,2135.6,0.98943566]
[1770666655335,0.0012,2136.6,2135.8,0.98943566]
[1770666656341,0.0012,2136.6,2136.0,0.98943566]
[1770666656546,0.05631688,2137.1,2136.1,0.98943566]
[1770666656911,0.05631688,2137.1,2136.2,1.1703024]
[1770666657740,0.05631688,2137.3,2136.2,2.15973806]
[1770666658039,0.05631688,2137.7,2136.3,0.98943566]
[1770666658237,0.05631688,2137.7,2136.6,0.98943566]
[1770666658440,0.05631688,2137.7,2136.7,3.272]
[1770666658642,0.05631688,2138.1,2136.8,12.291422]
[1770666658816,0.05631688,2138.1,2136.9,0.98943566]
[1770666659016,0.05631688,2137.9,2137.0,1.16986429]
[1770666659216,0.05631688,2138.1,2137.0,1.16986429]
[1770666659513,0.05631688,2138.1,2137.0,2.15929995]
[1770666659718,1.22558069,2138.1,2137.0,2.15929995]
[1770666660041,0.05631688,2138.1,2137.1,0.98943566]
[1770666660241,0.05631688,2138.0,2137.1,0.98943566]
[1770666660447,0.05631688,2137.4,2137.0,1.16986429]
[1770666660757,0.05631688,2137.8,2137.0,1.16986429]
[1770666661051,0.05631688,2137.6,2136.8,4.67945718]
[1770666661218,0.05631688,2138.5,2137.1,0.98943566]
[1770666661421,0.05631688,2138.3,2137.1,0.98943566]
[1770666661661,0.05631688,2138.2,2137.1,0.98943566]
[1770666662230,0.95802851,2138.5,2137.1,0.98943566]
[1770666662452,0.05631688,2138.3,2137.1,0.98943566]
[1770666662648,0.05631688,2138.1,2137.1,0.98943566]
[1770666663341,0.05631688,2138.3,2137.2,1.16975481]
[1770666663342,0.05631688,2138.0,2137.2,1.16975481]
[1770666663524,0.05631688,2138.2,2137.3,3.271]
[1770666663854,0.05631688,2138.2,2137.2,1.16975481]
[1770666663855,0.05631688,2138.0,2137.2,1.16975481]
[1770666664030,0.05631688,2137.8,2137.2,1.16975481]
[1770666664354,0.05631688,2137.8,2137.1,4.67901927]
[1770666664355,0.05631688,2137.6,2137.1,1.1697683]
[1770666664552,0.05631688,2137.4,2137.0,1.16983987]
[1770666664773,0.05631688,2137.3,2136.7,1.17002525]
[1770666665053,0.05631688,2137.3,2136.9,1.16991837]
[1770666665254,1.22604052,2137.3,2136.4,1.17019284]
[1770666665460,1.22586399,2137.6,2136.4,2.1596285]
[1770666665631,2.07090539,2138.3,2136.7,1.22300596]
[1770666665827,0.05631688,2138.1,2136.7,1.22300596]
[1770666666028,0.05631688,2138.2,2136.7,1.22300596]
[1770666666568,4.73292914,2138.4,2137.1,0.98943566]
[1770666666569,1.22543436,2138.4,2137.1,0.98943566]
[1770666666861,1.22543436,2138.4,2137.2,0.98943566]
[1770666667537,0.05631688,2138.2,2137.3,1.16970008]
[1770666667737,0.05631688,2138.0,2137.3,1.16970008]
[1770666667951,0.05631688,2137.8,2137.2,1.16971711]
[1770666668952,5.57723799,2138.8,2137.3,0.98943566]
[1770666669150,0.05631688,2138.3,2137.3,0.98943566]
[1770666669338,0.05631688,2137.9,2137.2,1.16971711]
[1770666669557,1.22570182,2137.9,2137.1,4.6790981]
[1770666669865,0.05631688,2137.7,2137.1,4.6790981]
[1770666670372,0.0012,2137.6,2137.1,1.16980955]
[1770666671075,0.05631688,2137.5,2137.0,1.16982095]
[1770666671372,0.0012,2137.6,2137.0,1.16982095]
[1770666671543,0.05631688,2137.5,2136.8,4.68097803]
[1770666672966,0.05631688,2137.3,2136.8,4.68097803]
[1770666673174,0.05631688,2137.5,2136.8,4.68097803]
[1770666674252,0.05631688,2137.4,2136.8,0.0011]
[1770666674778,0.05631688,2136.9,2136.8,0.0011]
[1770666675080,0.05631688,2137.3,2136.8,0.0011]
[1770666675581,0.05631688,2137.1,2136.8,0.0011]
[1770666675784,0.05631688,2136.9,2136.5,0.0011]
[1770666676106,0.05631688,2136.9,2136.5,1.17122976]
[1770666676310,0.05631688,2136.9,2136.5,0.0011]
[1770666676672,1.22623819,2136.9,2136.1,1.17032344]
[1770666676873,0.05631688,2136.7,2136.2,1.1703024]
[1770666677119,1.22623819,2136.9,2136.3,1.17023438]
[1770666677398,1.22623819,2136.9,2136.2,1.17026958]
[1770666677399,0.05631688,2136.6,2136.2,1.17026958]
[1770666677591,0.05631688,2136.7,2136.2,1.17026958]
[1770666677787,1.22623819,2136.9,2136.3,1.17021594]
[1770666678501,0.05631688,2136.7,2135.7,1.17167639]
[1770666679478,0.05631688,2136.9,2135.8,0.93609805]
[1770666679684,0.05631688,2137.1,2135.9,0.93609805]
[1770666680002,1.2261289,2137.1,2135.9,0.93609805]
[1770666680402,0.05631688,2137.1,2136.1,0.93609805]
[1770666681489,3.27,2137.2,2136.1,0.93609805]
[1770666681894,3.27,2137.2,2136.2,0.93609805]
[1770666682505,3.27,2137.2,2136.3,1.17024762]
[1770666682902,0.05631688,2136.5,2135.9,4.68173584]
[1770666683214,0.05631688,2136.5,2136.1,1.17144858]
[1770666683591,0.05631688,2136.5,2136.1,1.17145521]
[1770666684384,1.22649359,2136.5,2135.9,0.0011]
[1770666684584,0.05631688,2136.3,2135.9,0.0011]
[1770666684807,1.22645593,2136.5,2135.9,0.0011]
[1770666684982,1.00465525,2136.4,2135.9,0.0011]
[1770666685182,0.05631688,2136.5,2135.9,0.0011]
[1770666685397,1.00438846,2136.4,2135.9,0.0011]
[1770666685605,0.05631688,2136.3,2135.9,0.0011]
[1770666686590,0.05631688,2136.1,2135.9,0.0011]
[1770666687412,1.02455938,2136.1,2134.6,0.93719805]
[1770666687618,0.05631688,2135.0,2134.6,0.0011]
[1770666687804,0.05631688,2134.9,2134.4,1.17125323]
[1770666688111,0.05631688,2134.9,2134.4,1.17125015]
[1770666688318,0.05631688,2134.9,2134.3,1.17129615]
[1770666688319,0.05631688,2134.7,2134.3,1.17129615]
[1770666688484,0.05631688,2134.7,2134.1,0.0011]
[1770666688702,0.05631688,2134.9,2134.1,0.0011]
[1770666688928,1.22726393,2135.1,2134.1,0.0011]
[1770666689128,0.05631688,2134.9,2134.1,0.0011]
[1770666689314,0.05631688,2134.7,2134.1,0.0011]
[1770666689516,0.05631688,2134.6,2134.1,0.0011]
[1770666689721,1.02455938,2134.9,2134.1,0.0011]
[1770666689910,0.05631688,2134.7,2134.1,0.0011]
[1770666691431,2.19560745,2134.9,2134.1,0.0011]
[1770666691635,0.05631688,2134.7,2134.1,0.0011]
[1770666692723,0.05631688,2134.5,2134.1,0.0011]
[1770666693124,1.22727136,2135.1,2134.1,0.93719805]
[1770666693322,0.05631688,2134.9,2134.1,0.0011]